bitfinex-derivatives/quotes_BTCF0:USTF0_20250117
["timestamp","ask_amount","ask_price","bid_price","bid_amount"]
[1737145764057,0.69988257,105290.0,105280.0,0.14542547]
[1737145764758,0.79309677,105290.0,105280.0,0.00474527]
[1737145764966,1.09309677,105290.0,105270.0,0.03954974]
[1737145765262,0.3608,105280.0,105270.0,0.00474583]
[1737145765459,0.3608,105280.0,105220.0,0.3608]
[1737145765663,0.3608,105240.0,105230.0,0.047488]
[1737145765852,0.02506174,105240.0,105230.0,0.047488]
[1737145766052,0.3608,105240.0,105230.0,0.047488]
[1737145766374,0.3608,105250.0,105240.0,0.047484]
[1737145766693,0.35632191,105250.0,105240.0,0.1406982]
[1737145766896,0.35632191,105250.0,105240.0,0.1396982]
[1737145767285,0.5519106,105260.0,105240.0,0.1396982]
[1737145767588,0.0932142,105280.0,105250.0,0.5014932]
[1737145767589,0.32971776,105280.0,105250.0,0.5014932]
[1737145767796,0.31685795,105280.0,105270.0,0.04747]
[1737145767991,0.77087215,105280.0,105250.0,0.1406932]
[1737145768284,0.3608,105260.0,105250.0,0.1406932]
[1737145769980,0.3608,105260.0,105250.0,0.14365962]
[1737145771474,0.7216,105260.0,105250.0,0.0932142]
[1737145771866,0.7216,105260.0,105250.0,0.1406932]
[1737145772655,0.65314859,105260.0,105250.0,0.1406932]
[1737145772865,0.60296509,105260.0,105250.0,0.1406932]
[1737145773760,0.11500992,105260.0,105250.0,0.0932142]
[1737145774065,0.11500992,105260.0,105250.0,0.1406932]
[1737145774479,0.11500992,105260.0,105250.0,0.1549732]
[1737145775064,0.11500992,105260.0,105250.0,0.0932142]
[1737145775267,0.11500992,105260.0,105250.0,0.1549732]
[1737145776371,0.11500992,105260.0,105250.0,0.1406932]
[1737145777170,0.44183993,105260.0,105240.0,0.047483]
[1737145777369,0.3608,105250.0,105240.0,0.047483]
[1737145777864,0.31001716,105250.0,105240.0,0.047483]
[1737145778065,0.22788095,105250.0,105240.0,0.047483]
[1737145778365,0.15411839,105250.0,105240.0,0.047483]
[1737145778663,0.15383256,105250.0,105240.0,0.1406972]
[1737145778868,0.15392045,105250.0,105240.0,0.1406972]
[1737145779272,0.35842045,105250.0,105240.0,0.1406972]
[1737145779667,0.32485046,105250.0,105240.0,0.1406972]
[1737145781872,0.32485046,105250.0,105240.0,0.18041696]
[1737145783474,0.32485046,105250.0,105240.0,0.1833836]
[1737145785476,0.32485046,105250.0,105200.0,0.047502]
[1737145785669,0.20458789,105250.0,105240.0,0.1406972]
[1737145785977,0.92618789,105250.0,105240.0,0.1406972]
[1737145787273,0.92618789,105250.0,105240.0,0.047483]
[1737145787475,0.92618789,105250.0,105230.0,0.094974]
[1737145787669,0.772,105240.0,105230.0,0.1407002]
[1737145788374,0.772,105240.0,105230.0,0.0932142]
[1737145788784,0.772,105240.0,105230.0,0.1407022]
[1737145788987,1.05441236,105240.0,105190.0,0.047506]
[1737145789178,1.05441236,105240.0,105190.0,0.04940732]
[1737145789179,0.7216,105200.0,105190.0,0.04940732]
[1737145789383,0.11889474,105200.0,105190.0,0.25054726]
[1737145789681,0.24306029,105220.0,105210.0,0.047497]
[1737145789880,0.23547942,105220.0,105210.0,0.1407112]
[1737145790084,0.23547942,105220.0,105210.0,0.14080122]
[1737145790270,0.00758087,105220.0,105210.0,0.047497]
[1737145790474,0.00758087,105220.0,105210.0,0.1407112]
[1737145791179,0.3608,105220.0,105210.0,0.14078537]
[1737145791575,0.3608,105220.0,105210.0,0.0932142]
[1737145791784,0.3608,105220.0,105210.0,0.1407112]
[1737145792284,0.5591,105220.0,105210.0,0.1407112]
[1737145792780,0.5591,105220.0,105210.0,0.14080041]
[1737145792973,0.27427794,105220.0,105210.0,0.14080041]
[1737145793176,0.3608,105220.0,105210.0,0.14080041]
[1737145793984,0.05972912,105220.0,105210.0,0.14080041]
[1737145794485,0.28567478,105230.0,105210.0,0.09330341]
[1737145794672,0.4052762,105240.0,105220.0,0.1407072]
[1737145794871,0.3608,105260.0,105230.0,0.0932142]
[1737145795180,0.3608,105240.0,105230.0,0.0932142]
[1737145795485,0.3608,105240.0,105220.0,0.0932142]
[1737145795682,0.3608,105280.0,105230.0,0.47021057]
[1737145795873,0.3608,105290.0,105270.0,0.0932142]
[1737145796184,7.241e-05,105280.0,105270.0,0.4587596]
[1737145796486,0.223,105280.0,105270.0,0.3655454]
[1737145796780,0.10910606,105280.0,105270.0,0.0047454]
[1737145797088,0.44442803,105280.0,105260.0,0.01428]
[1737145797388,0.33541586,105270.0,105260.0,0.01428]
[1737145797571,0.33541586,105270.0,105260.0,0.11045993]
[1737145798084,0.33551312,105270.0,105260.0,0.11045993]
[1737145798789,0.65233958,105280.0,105260.0,0.47125993]
[1737145799084,0.60335402,105280.0,105270.0,0.0932142]
[1737145799279,0.53299183,105280.0,105270.0,0.00296573]
[1737145799478,0.53299183,105280.0,105240.0,0.047482]
[1737145799677,0.53299183,105280.0,105240.0,0.061762]
[1737145799678,0.3608,105250.0,105240.0,0.061762]
[1737145799876,0.3608,105260.0,105240.0,0.16102617]
[1737145800076,0.3608,105260.0,105240.0,0.11354417]
[1737145800278,0.3608,105260.0,105240.0,0.16102517]
[1737145800483,0.3608,105260.0,105250.0,0.14080057]
[1737145800789,0.32229548,105260.0,105250.0,0.14080057]
[1737145801589,0.31976869,105260.0,105250.0,0.14080057]
[1737145801782,0.31976869,105260.0,105250.0,0.0932142]
[1737145802082,0.31976869,105260.0,105250.0,0.20868949]
[1737145802083,0.0345555,105260.0,105250.0,0.20868949]
[1737145802283,0.233,105280.0,105260.0,0.047475]
[1737145802284,0.5511,105280.0,105260.0,0.047475]
[1737145802586,0.20889339,105290.0,105280.0,0.047466]
[1737145802776,0.20889339,105290.0,105280.0,0.1406802]
[1737145802977,0.04518726,105290.0,105280.0,0.5014802]
[1737145803299,0.1,105300.0,105290.0,0.047461]
[1737145803587,0.44485692,105300.0,105280.0,0.0933319]
[1737145803789,0.3608,105290.0,105280.0,0.0001177]
[1737145804084,0.4540142,105290.0,105280.0,0.0001177]
[1737145804288,0.3608,105290.0,105280.0,0.0001177]
[1737145804793,0.7540142,105290.0,105260.0,0.0932142]
[1737145804982,0.3608,105270.0,105260.0,0.0932142]
[1737145805181,0.7216,105270.0,105260.0,0.0932142]
[1737145805491,0.7216,105270.0,105250.0,0.1549702]
[1737145805681,0.3608,105260.0,105250.0,0.10939443]
[1737145806285,0.21334503,105260.0,105250.0,0.47019443]
[1737145806686,0.21334503,105260.0,105250.0,0.51767343]
[1737145806886,0.21334503,105260.0,105250.0,0.16161872]
[1737145807087,0.21334503,105260.0,105250.0,0.52241872]
[1737145807284,0.57414503,105260.0,105250.0,0.0932142]
[1737145807496,0.57414503,105260.0,105250.0,0.15687343]
[1737145808390,0.44181946,105260.0,105250.0,0.15695019]
[1737145808593,0.43381946,105260.0,105250.0,0.15695019]
[1737145808786,0.43381946,105260.0,105250.0,0.0932142]
[1737145809096,0.41440203,105260.0,105250.0,0.1549732]
[1737145809695,0.30116,105260.0,105250.0,0.1549732]
[1737145809993,0.30116,105260.0,105250.0,0.15507995]
[1737145810990,0.19054563,105260.0,105250.0,0.15507995]
[1737145811593,0.19054563,105260.0,105250.0,0.15804586]
[1737145812194,0.41914563,105260.0,105250.0,0.15804586]
[1737145812796,0.41914563,105260.0,105250.0,0.15757607]
[1737145814888,0.41914563,105260.0,105250.0,0.09274441]
[1737145815094,0.26805559,105250.0,105240.0,0.01428]
[1737145815289,0.3608,105240.0,105220.0,0.01428]
[1737145815497,0.5192134,105230.0,105220.0,0.061773]
[1737145815799,0.6618382,105230.0,105220.0,0.16806639]
[1737145815998,0.8844382,105230.0,105220.0,0.16816037]
[1737145816304,0.8844382,105230.0,105220.0,0.26090478]
[1737145816898,0.77529612,105230.0,105190.0,0.01428]
[1737145817094,0.3608,105220.0,105210.0,0.047497]
[1737145817297,0.50693341,105230.0,105210.0,0.24110661]
[1737145817489,0.48201962,105230.0,105220.0,0.047493]
[1737145817692,0.44850571,105230.0,105220.0,0.05223946]
[1737145817894,0.44850571,105230.0,105220.0,0.15321683]
[1737145818199,0.5918,105240.0,105220.0,0.55926824]
[1737145818387,0.52890446,105240.0,105230.0,0.047488]
[1737145818596,0.52890446,105240.0,105230.0,0.05223442]
[1737145818796,0.52890446,105240.0,105230.0,0.15925883]
[1737145819192,0.5886,105240.0,105230.0,0.15925883]
[1737145819599,0.5886,105240.0,105230.0,0.15936067]
[1737145819801,0.57860597,105240.0,105230.0,0.15936067]
[1737145820101,0.57525461,105240.0,105230.0,0.15936067]
[1737145820789,0.13142283,105240.0,105230.0,0.06661626]
[1737145820991,0.13151872,105240.0,105230.0,0.01912826]
[1737145821201,0.13151872,105240.0,105230.0,0.11187267]
[1737145821402,0.36761872,105240.0,105230.0,0.11187267]
[1737145822003,0.13336846,105240.0,105230.0,0.11187267]
[1737145822306,0.3608,105270.0,105230.0,0.93524775]
[1737145822494,0.5845,105260.0,105250.0,0.047479]
[1737145822795,0.2237,105260.0,105250.0,0.047479]
[1737145822992,0.2237,105260.0,105230.0,0.35028104]
[1737145822993,0.58461756,105260.0,105210.0,0.3608]
[1737145823199,0.3608,105230.0,105220.0,0.047493]
[1737145823396,0.3608,105230.0,105220.0,0.1501537]
[1737145823698,0.31356046,105230.0,105220.0,0.14023741]
[1737145823902,0.3608,105230.0,105220.0,0.19540511]
[1737145824203,0.3608,105230.0,105220.0,0.2430124]
[1737145824400,0.31356046,105230.0,105190.0,0.01428]
[1737145824587,1e-08,105230.0,105220.0,0.14024241]
[1737145824791,0.36080001,105230.0,105220.0,0.23974377]
[1737145824995,0.36080001,105230.0,105220.0,0.14024241]
[1737145825191,0.36080001,105230.0,105220.0,0.2468268]
[1737145825398,0.63380188,105230.0,105220.0,0.24694463]
[1737145825601,0.31883648,105230.0,105220.0,0.24694463]
[1737145826105,0.29747625,105230.0,105220.0,0.09274441]
[1737145826305,0.29747625,105230.0,105220.0,0.20714146]
[1737145827000,0.29747625,105230.0,105220.0,0.25769343]
[1737145827401,0.29747625,105230.0,105220.0,0.09274441]
[1737145827601,0.80727625,105230.0,105220.0,0.1985851]
[1737145828499,0.80727625,105230.0,105220.0,0.20340475]
[1737145828807,0.74716367,105230.0,105220.0,0.25090275]
[1737145828994,0.71755367,105230.0,105220.0,0.25090275]
[1737145829400,0.15430971,105230.0,105220.0,0.25090275]
[1737145829604,0.32579826,105240.0,105230.0,0.047493]
[1737145829794,0.32579826,105240.0,105230.0,0.144984]
[1737145829998,0.28179826,105240.0,105230.0,0.25008635]
[1737145830502,0.21779826,105240.0,105230.0,0.25008635]
[1737145831310,0.21779826,105240.0,105230.0,0.144984]
[1737145832498,0.46309826,105240.0,105230.0,0.144984]
[1737145833408,0.46309826,105240.0,105220.0,0.047498]
[1737145833599,0.3608,105230.0,105220.0,0.05224435]
[1737145833801,0.3608,105230.0,105220.0,0.26389227]
[1737145834002,0.3608,105230.0,105220.0,0.15452241]
[1737145834505,0.33162989,105230.0,105220.0,0.1546231]
[1737145834709,0.33162989,105230.0,105220.0,0.1403431]
[1737145834902,0.33162989,105230.0,105220.0,0.1546231]
[1737145835209,0.33162989,105230.0,105200.0,0.047507]
[1737145835210,0.69242989,105230.0,105170.0,0.04752]
[1737145835510,0.258468,105210.0,105200.0,0.15188959]
[1737145835810,0.33113305,105220.0,105210.0,0.047502]
[1737145836203,0.33113305,105220.0,105210.0,0.04757611]
[1737145836402,0.30241927,105220.0,105210.0,0.15236418]
[1737145837112,0.30241927,105220.0,105210.0,0.24220042]
[1737145837509,0.12679127,105220.0,105210.0,0.24220042]
[1737145837700,0.30073,105220.0,105210.0,0.24220042]
[1737145838013,0.66904528,105250.0,105230.0,0.047493]
[1737145838209,0.16816003,105250.0,105240.0,0.14023341]
[1737145838400,0.47385202,105250.0,105240.0,0.14023341]
[1737145838602,0.47385202,105250.0,105240.0,0.15451341]
[1737145839402,0.2013549,105250.0,105240.0,0.25550571]
[1737145839601,0.87116001,105270.0,105250.0,0.047481]
[1737145839806,0.36072,105260.0,105250.0,0.05044602]
[1737145840219,0.36072,105260.0,105250.0,0.15747043]
[1737145840417,0.36072,105260.0,105250.0,0.01724602]
[1737145840710,0.36072,105260.0,105240.0,0.02865771]
[1737145840711,0.6608281,105260.0,105240.0,0.02865771]
[1737145840917,0.33944273,105250.0,105240.0,0.02865771]
[1737145841114,0.33944273,105250.0,105240.0,0.12140212]
[1737145841314,0.58137711,105250.0,105240.0,0.16889112]
[1737145842011,0.58137711,105250.0,105240.0,0.07614671]
[1737145842610,0.58137711,105250.0,105240.0,0.16889112]
[1737145843311,0.58137711,105250.0,105240.0,0.21638447]
[1737145843611,0.58137711,105250.0,105240.0,0.22113052]
[1737145844016,0.84057711,105250.0,105240.0,0.22113052]
[1737145845718,0.81091486,105250.0,105240.0,0.22113052]
[1737145846418,0.81091486,105250.0,105240.0,0.12364006]
[1737145847019,0.81091486,105250.0,105240.0,0.21638447]
[1737145847218,0.81091486,105250.0,105240.0,0.12364006]
[1737145847417,0.81091486,105250.0,105240.0,0.21638447]
[1737145848708,1.20365927,105250.0,105230.0,0.01428]
[1737145848921,0.71584441,105240.0,105230.0,0.01428]
[1737145849120,1.34004441,105240.0,105220.0,0.047497]
[1737145849421,0.8865,105230.0,105220.0,0.047497]
[1737145850014,0.8865,105230.0,105220.0,0.14024141]
[1737145850215,1.27924441,105230.0,105210.0,0.06186247]
[1737145850417,0.70024441,105220.0,105210.0,0.06186247]
[1737145850618,0.6075,105220.0,105210.0,0.06186247]
[1737145851418,0.6075,105220.0,105210.0,0.01428]
[1737145851419,0.70024441,105220.0,105210.0,0.01428]
[1737145851609,1.00024441,105220.0,105210.0,0.01428]
[1737145851813,0.70024441,105220.0,105200.0,0.10702441]
[1737145852016,1.1107,105210.0,105200.0,0.15452941]
[1737145852415,1.20344441,105210.0,105200.0,0.06186907]
[1737145852617,1.20344441,105210.0,105200.0,0.06483656]
[1737145852820,1.20344441,105210.0,105200.0,0.06186907]
[1737145853024,1.20344441,105210.0,105200.0,0.06483656]
[1737145853328,1.1107,105210.0,105190.0,0.15453241]
[1737145853620,0.3608,105200.0,105190.0,0.061788]
[1737145854424,0.36090182,105200.0,105190.0,0.15460561]
[1737145855116,0.00010182,105200.0,105190.0,0.26099349]
[1737145855321,1.05086182,105210.0,105200.0,0.047507]
[1737145855620,1.05086182,105210.0,105200.0,0.24663929]
[1737145855840,0.3608,105220.0,105210.0,0.047502]
[1737145856015,0.3608,105220.0,105210.0,0.14024641]
[1737145856214,0.32551359,105220.0,105210.0,0.24325821]
[1737145856412,0.58351359,105220.0,105210.0,0.24325821]
[1737145856725,0.58351359,105220.0,105210.0,0.047502]
[1737145856916,0.676258,105220.0,105200.0,0.047506]
[1737145857118,0.71154441,105210.0,105200.0,0.047506]
[1737145857322,0.71154441,105210.0,105190.0,0.01428]
[1737145857518,0.71154441,105210.0,105180.0,0.13725148]
[1737145857519,0.46354415,105200.0,105180.0,0.13725148]
[1737145857827,0.52144415,105190.0,105170.0,0.02998537]
[1737145858023,0.51106115,105180.0,105150.0,0.01428]
[1737145858225,0.51106115,105180.0,105140.0,0.01570622]
[1737145858226,0.81434441,105160.0,105140.0,0.01570622]
[1737145858413,0.81434441,105160.0,105120.0,0.17057702]
[1737145858414,0.96410394,105150.0,105120.0,0.13731502]
[1737145858619,0.7216,105130.0,105120.0,0.12303502]
[1737145859013,1.00541832,105130.0,105120.0,0.12303502]
[1737145859222,1.09816273,105130.0,105120.0,0.12303502]
[1737145859721,1.09816273,105130.0,105110.0,0.09300948]
[1737145859722,0.81460948,105130.0,105110.0,0.09300948]
[1737145859920,0.3608,105120.0,105110.0,0.09300948]
[1737145860441,0.64461832,105120.0,105110.0,0.09300948]
[1737145860830,0.64461832,105120.0,105110.0,0.13950299]
[1737145861025,0.64461832,105120.0,105100.0,0.13962176]
[1737145861330,0.3608,105110.0,105100.0,0.00011877]
[1737145861714,0.64461832,105110.0,105100.0,0.00011877]
[1737145862122,0.78412131,105110.0,105100.0,0.00011877]
[1737145862528,0.78412131,105110.0,105090.0,0.23510707]
[1737145862724,0.8821,105100.0,105090.0,0.23510707]
[1737145863229,0.8821,105100.0,105080.0,0.02856]
[1737145863230,0.00999974,105090.0,105080.0,0.02856]
[1737145863429,1.03160273,105090.0,105080.0,0.02856]
[1737145863625,1.03171558,105090.0,105060.0,0.15378299]
[1737145863930,0.7216,105070.0,105060.0,0.26115641]
[1737145864328,1.00541832,105070.0,105060.0,0.01428]
[1737145864522,1.00541832,105070.0,105060.0,0.01435481]
[1737145864722,1.00541832,105070.0,105060.0,0.1538578]
[1737145865123,0.3608,105060.0,105020.0,0.047587]
[1737145865323,0.5213,105080.0,105050.0,0.13950299]
[1737145865531,0.5213,105080.0,105040.0,0.29350159]
[1737145865532,0.3608,105050.0,105040.0,0.29350159]
[1737145865732,0.3608,105050.0,105040.0,0.19195562]
[1737145865925,0.3608,105040.0,105030.0,0.047579]
[1737145866119,0.3608,105040.0,105030.0,0.04765004]
[1737145866319,0.64461832,105040.0,105020.0,0.3055079]
[1737145866622,0.3608,105030.0,105020.0,0.20136999]
[1737145866927,0.3608,105030.0,105020.0,0.18086582]
[1737145867132,0.64461832,105030.0,105020.0,0.13518321]
[1737145867431,0.64461832,105030.0,105020.0,0.13528446]
[1737145868033,0.3608,105030.0,105020.0,0.57478745]
[1737145868330,0.45182647,105080.0,105050.0,0.047572]
[1737145868532,0.3608,105080.0,105070.0,0.13950299]
[1737145868724,0.3608,105080.0,105060.0,0.13950299]
[1737145868924,0.3608,105080.0,105070.0,0.13950299]
[1737145869232,0.64461832,105080.0,105070.0,0.13950299]
[1737145869422,0.64461832,105080.0,105060.0,0.13950299]
[1737145869628,0.3608,105070.0,105060.0,0.13950299]
[1737145870126,0.64461832,105070.0,105060.0,0.13950299]
[1737145870328,0.64461832,105070.0,105060.0,0.01485808]
[1737145870534,0.64461832,105070.0,105040.0,0.56216099]
[1737145870733,0.3608,105070.0,105040.0,0.56216099]
[1737145870935,0.3608,105070.0,105050.0,0.10811421]
[1737145871232,0.3608,105070.0,105050.0,0.3608]
[1737145871427,0.3608,105070.0,105050.0,0.46346533]
[1737145871730,0.13950299,105060.0,105050.0,0.46346533]
[1737145871920,0.78412131,105070.0,105050.0,0.10266533]
[1737145872430,0.13950299,105060.0,105050.0,0.46346533]
[1737145872636,0.28381832,105060.0,105050.0,0.46346533]
[1737145873132,0.28381832,105060.0,105050.0,0.60296832]
[1737145873936,0.27631285,105090.0,105060.0,0.047561]
[1737145874124,0.00011285,105090.0,105080.0,0.54785899]
[1737145874329,0.13885958,105100.0,105080.0,0.59541199]
[1737145874530,0.1,105100.0,105090.0,0.50030299]
[1737145874832,0.1,105100.0,105090.0,0.61728029]
[1737145875032,0.38381832,105100.0,105090.0,0.61728029]
[1737145875234,0.38391361,105100.0,105090.0,0.61728029]
[1737145875931,0.82169529,105100.0,105090.0,0.13950299]
[1737145876128,0.82169529,105100.0,105090.0,0.01428]
[1737145876129,1.10551361,105100.0,105090.0,0.01428]
[1737145876730,1.10551361,105100.0,105060.0,0.65425642]
[1737145876731,1.10551361,105100.0,105060.0,0.19833242]
[1737145876932,0.9058,105090.0,105080.0,9.753e-05]
[1737145877136,1.2666,105090.0,105080.0,9.753e-05]
[1737145877440,1.55041832,105090.0,105060.0,0.15378299]
[1737145877738,0.7216,105070.0,105060.0,0.11875803]
[1737145878043,0.7216,105070.0,105060.0,0.12172915]
[1737145878229,1.00541832,105070.0,105060.0,0.26123214]
[1737145878426,1.00541832,105070.0,105060.0,0.15685277]
[1737145878427,0.98402596,105070.0,105060.0,0.15685277]
[1737145879431,0.98402596,105070.0,105060.0,0.01734978]
[1737145879929,0.98402596,105070.0,105060.0,0.00306978]
[1737145880143,0.98402596,105070.0,105060.0,0.14257277]
[1737145880639,0.98402596,105070.0,105060.0,0.15743116]
[1737145881229,0.98402596,105070.0,105060.0,0.26560713]
[1737145881436,0.98402596,105070.0,105060.0,0.25074874]
[1737145881638,0.98402596,105070.0,105060.0,0.25074888]
[1737145882743,0.98402596,105070.0,105060.0,0.29831388]
[1737145882940,0.6194,105080.0,105070.0,0.047561]
[1737145883133,0.3608,105090.0,105070.0,0.19003525]
[1737145883341,0.46089529,105100.0,105080.0,0.50030299]
[1737145883539,0.31368295,105110.0,105090.0,0.50030299]
[1737145883741,0.31368295,105110.0,105100.0,0.18704999]
[1737145883941,0.67448295,105110.0,105100.0,0.18704999]
[1737145884134,0.67448295,105110.0,105100.0,0.28709635]
[1737145884341,0.2763,105140.0,105110.0,0.047542]
[1737145884342,0.3608,105120.0,105110.0,0.047542]
[1737145884544,0.3608,105120.0,105110.0,0.18716291]
[1737145884545,0.36092125,105120.0,105110.0,0.18716291]
[1737145884845,0.64473957,105120.0,105110.0,0.29208716]
[1737145886841,0.00012125,105120.0,105110.0,0.65288716]
[1737145887049,0.9019,105140.0,105120.0,0.047538]
[1737145887245,0.9019,105140.0,105130.0,0.13950299]
[1737145887448,0.9019,105140.0,105130.0,0.19594735]
[1737145887748,1.18571832,105140.0,105130.0,0.30338956]
[1737145887944,1.18581587,105140.0,105130.0,0.30338956]
[1737145888462,1.18581587,105140.0,105130.0,0.13950299]
[1737145888463,0.90199755,105140.0,105130.0,0.13950299]
[1737145888749,1.18581587,105140.0,105130.0,0.25379593]
[1737145889147,1.18581587,105140.0,105120.0,0.02856]
[1737145889351,0.3608,105130.0,105120.0,0.02856]
[1737145889550,0.3608,105130.0,105120.0,0.27527938]
[1737145889849,0.64461832,105130.0,105120.0,0.27527938]
[1737145890349,0.3608,105130.0,105120.0,0.32281738]
[1737145892145,0.90199755,105140.0,105130.0,0.047533]
[1737145892146,9.755e-05,105140.0,105130.0,0.047533]
[1737145892349,0.33048877,105150.0,105140.0,0.047529]
[1737145892552,0.33048877,105150.0,105140.0,0.18703199]
[1737145892853,0.33048877,105150.0,105140.0,0.29149011]
[1737145893545,0.30080455,105150.0,105140.0,0.29149011]
[1737145894748,0.30080455,105150.0,105140.0,0.30577011]
[1737145895344,0.30080455,105150.0,105140.0,0.30873852]
[1737145896146,0.29815311,105150.0,105140.0,0.30873852]
[1737145896548,0.29815311,105150.0,105140.0,0.30577011]
[1737145897247,0.26015134,105150.0,105140.0,0.30577011]
[1737145897447,0.22106558,105160.0,105150.0,0.047524]
[1737145897643,0.18980041,105160.0,105150.0,0.18702699]
[1737145897845,7.041e-05,105160.0,105150.0,0.64677631]
[1737145898039,0.30702959,105170.0,105160.0,0.04752]
[1737145898250,0.33985451,105180.0,105170.0,0.047515]
[1737145898452,0.28497769,105180.0,105170.0,0.18701799]
[1737145898650,0.56879601,105180.0,105170.0,0.29323695]
[1737145898955,0.56879601,105180.0,105160.0,0.18702199]
[1737145899157,0.36089322,105170.0,105160.0,0.13950299]
[1737145899352,0.36089322,105170.0,105160.0,0.24921317]
[1737145899655,0.64471154,105170.0,105160.0,0.29673317]
[1737145899848,9.322e-05,105170.0,105160.0,0.29673317]
[1737145900154,0.6449,105190.0,105180.0,0.047511]
[1737145900355,0.61255235,105190.0,105180.0,0.18701399]
[1737145900660,0.89637067,105190.0,105180.0,0.28801962]
[1737145901047,0.89644505,105190.0,105180.0,0.28801962]
[1737145901350,0.64117438,105190.0,105180.0,0.28812948]
[1737145901651,0.28037438,105190.0,105180.0,0.66320948]
[1737145901841,0.28037438,105190.0,105180.0,0.30240948]
[1737145902346,0.9249927,105190.0,105180.0,0.11539549]
[1737145902649,0.9249927,105190.0,105180.0,0.01438986]
[1737145903555,0.9249927,105190.0,105170.0,0.15378299]
[1737145903753,0.947,105180.0,105170.0,0.01428]
[1737145903950,0.947,105180.0,105170.0,0.25312535]
[1737145904251,1.23081832,105180.0,105160.0,0.07583593]
[1737145904458,0.9395,105170.0,105160.0,0.07583593]
[1737145904649,0.9395,105170.0,105160.0,0.17641922]
[1737145904957,1.22331832,105170.0,105160.0,0.17641922]
[1737145905252,1.22331832,105170.0,105160.0,0.36344221]
[1737145905451,0.93171832,105170.0,105160.0,0.36344221]
[1737145905653,0.2871,105170.0,105160.0,0.36344221]
[1737145905845,0.93171832,105170.0,105160.0,0.17641922]
[1737145907253,0.93171832,105170.0,105160.0,0.31592221]
[1737145907459,1.23431832,105170.0,105160.0,0.17641922]
[1737145907754,1.23431832,105170.0,105160.0,0.07595507]
[1737145907954,1.37382131,105170.0,105130.0,0.18703599]
[1737145908165,0.3608,105140.0,105130.0,0.13950299]
[1737145908362,0.3608,105140.0,105130.0,0.24451938]
[1737145908545,0.64461832,105140.0,105130.0,0.10501639]
[1737145908852,0.64461832,105140.0,105130.0,0.29214426]
[1737145910257,0.64461832,105140.0,105130.0,0.34005721]
[1737145910457,0.28381832,105140.0,105130.0,0.34005721]
[1737145911164,0.64461832,105140.0,105130.0,0.34005721]
[1737145911460,0.64461832,105140.0,105130.0,0.29252421]
[1737145911655,0.61492908,105140.0,105130.0,0.29549313]
[1737145911856,0.61492908,105140.0,105130.0,0.29252421]
[1737145912053,0.61492908,105140.0,105130.0,0.15599018]
[1737145912562,0.61492908,105140.0,105130.0,0.05097379]
[1737145912762,0.61492908,105140.0,105130.0,0.04800483]
[1737145913948,0.61492908,105140.0,105120.0,0.15378299]
[1737145914165,0.9467,105130.0,105120.0,0.15378299]
[1737145914358,0.9467,105130.0,105120.0,0.25724061]
[1737145914655,1.20082908,105130.0,105120.0,0.30383693]
[1737145915059,1.20082908,105130.0,105120.0,0.30394]
[1737145917355,1.55632908,105130.0,105120.0,0.30394]
[1737145922058,0.3608,105150.0,105120.0,0.72118115]
[1737145922357,0.54193988,105150.0,105140.0,0.13950299]
[1737145922565,0.3029,105150.0,105140.0,0.14840614]
[1737145922761,0.91782908,105150.0,105140.0,0.11420169]
[1737145923170,0.91782908,105150.0,105140.0,0.10529854]
[1737145923461,0.91782908,105150.0,105130.0,0.14840614]
[1737145923664,0.323,105140.0,105130.0,0.14840614]
[1737145923964,0.00999974,105130.0,105110.0,0.04748889]
[1737145924274,0.3608,105120.0,105110.0,0.13950299]
[1737145924563,0.3608,105120.0,105100.0,0.15378299]
[1737145924762,0.3608,105110.0,105100.0,0.00011223]
[1737145925072,0.69379974,105110.0,105100.0,0.61094773]
[1737145925265,1.10022185,105110.0,105100.0,0.51023304]
[1737145925962,1.10022185,105110.0,105090.0,0.5810809]
[1737145925963,1.10022185,105110.0,105090.0,0.61461826]
[1737145926160,0.6679,105100.0,105090.0,0.04781736]
[1737145926360,0.70932211,105100.0,105090.0,0.13950299]
[1737145926755,0.40692211,105100.0,105090.0,0.13961574]
[1737145926964,0.40692211,105100.0,105090.0,0.2461399]
[1737145927161,0.04612211,105100.0,105090.0,0.2461399]
[1737145927363,0.40692211,105100.0,105090.0,0.2461399]
[1737145927860,0.39822211,105100.0,105090.0,0.2461399]
[1737145928055,0.39822211,105100.0,105090.0,0.6072267]
[1737145928263,0.01642178,105100.0,105090.0,0.6547787]
[1737145928565,0.3608,105120.0,105090.0,0.9993787]
[1737145928756,0.3608,105120.0,105110.0,0.13950299]
[1737145929069,0.7095,105120.0,105110.0,0.13950299]
[1737145929271,0.72592178,105120.0,105110.0,0.13950299]
[1737145929455,0.72592178,105120.0,105110.0,0.24059288]
[1737145929656,0.36512178,105120.0,105110.0,0.24059288]
[1737145929860,0.72592178,105120.0,105110.0,0.24356245]
[1737145930764,0.72592178,105120.0,105110.0,0.2435625]
[1737145931074,0.72592178,105120.0,105110.0,0.24059288]
[1737145931565,0.36512178,105120.0,105110.0,0.24059288]
[1737145931767,0.01642178,105120.0,105110.0,0.64893588]
[1737145932070,0.01011957,105120.0,105110.0,0.64893588]
[1737145934664,0.01011957,105120.0,105110.0,0.66321588]
[1737145935060,0.99027051,105140.0,105120.0,0.047534]
[1737145935260,0.41851795,105180.0,105130.0,0.54783599]
[1737145935470,0.41851795,105180.0,105170.0,0.13950299]
[1737145935471,0.37079974,105180.0,105170.0,0.13950299]
[1737145935775,0.01011957,105180.0,105170.0,0.23883186]
[1737145935966,0.35021957,105180.0,105170.0,0.61391186]
[1737145936272,0.645,105190.0,105170.0,0.6615441]
[1737145936468,0.8009,105200.0,105180.0,0.13950299]
[1737145937068,0.8009,105200.0,105180.0,0.24565555]
[1737145937470,0.34021908,105190.0,105180.0,0.24565555]
[1737145938290,0.34021908,105190.0,105180.0,0.10615256]
[1737145939265,0.34021908,105190.0,105180.0,0.67207285]
[1737145939573,0.34021908,105190.0,105180.0,0.81157584]
[1737145940275,0.34021908,105190.0,105180.0,1.43075849]
[1737145941282,0.70101908,105190.0,105180.0,1.47759805]
[1737145941577,0.70101908,105190.0,105180.0,1.33809506]
[1737145942070,0.84052207,105190.0,105180.0,1.2319425]
[1737145942263,0.84052207,105190.0,105180.0,0.7320425]
[1737145942465,0.84052207,105190.0,105170.0,0.00011724]
[1737145942673,0.7015,105180.0,105170.0,0.00011724]
[1737145943070,0.84100299,105180.0,105170.0,0.00011724]
[1737145943762,1.18851399,105180.0,105130.0,0.3608]
[1737145943968,0.3608,105150.0,105130.0,0.37508]
[1737145944269,0.3608,105150.0,105130.0,0.48134549]
[1737145944468,0.3608,105150.0,105130.0,0.62084848]
[1737145944868,0.3608,105150.0,105140.0,0.00012154]
[1737145945572,0.50030299,105150.0,105140.0,0.00012154]
[1737145946978,1.23770299,105150.0,105140.0,0.00012154]